[Event "Titled Tuesday Blitz May 4 2021"]
[White "Yeremyan, Alen"]
[Black "Ravi, Thandalam Shanmugam"]
[WhiteFideId "13308998"]
[BlackFideId "5000238"]
[WhiteElo "2158"]
[BlackElo "2215"]
[Result "1/2-1/2"]
[Round "09"]
[TimeControl "180+1"]
[Date "2021.05.04"]
[WhiteClock "0:00:23"]
[BlackClock "0:00:35"]

1. d4 {[%clk 0:02:58]}  Nf6 {[%clk 0:02:58]} 2. Nf3 {[%clk 0:02:59]}  e6 {[%clk 0:02:58]} 3. e3 {[%clk 0:03:00]}  Be7 {[%clk 0:02:58]} 4. Bd3 {[%clk 0:03:00]}  O-O {[%clk 0:02:57]} 5. O-O {[%clk 0:03:01]}  b6 {[%clk 0:02:57]} 6. b3 {[%clk 0:03:02]}  Bb7 {[%clk 0:02:57]} 7. Bb2 {[%clk 0:03:03]}  c5 {[%clk 0:02:57]} 8. Nbd2 {[%clk 0:03:03]}  d6 {[%clk 0:02:57]} 9. c4 {[%clk 0:03:03]}  Nbd7 {[%clk 0:02:57]} 10. Qe2 {[%clk 0:03:03]}  Qc7 {[%clk 0:02:56]} 11. Rad1 {[%clk 0:03:03]}  Rac8 {[%clk 0:02:55]} 12. e4 {[%clk 0:03:01]}  e5 {[%clk 0:02:54]} 13. dxe5 {[%clk 0:02:54]}  Nxe5 {[%clk 0:02:52]} 14. Bb1 {[%clk 0:02:49]}  Nfd7 {[%clk 0:02:47]} 15. Nxe5 {[%clk 0:02:48]}  dxe5 {[%clk 0:02:44]} 16. Rfe1 {[%clk 0:02:48]}  Nb8 {[%clk 0:02:39]} 17. Nf1 {[%clk 0:02:48]}  Nc6 {[%clk 0:02:38]} 18. Ne3 {[%clk 0:02:47]}  Nd4 {[%clk 0:02:37]} 19. Bxd4 {[%clk 0:02:48]}  cxd4 {[%clk 0:02:37]} 20. Nd5 {[%clk 0:02:48]}  Bxd5 {[%clk 0:02:36]} 21. exd5 {[%clk 0:02:48]}  Bb4 {[%clk 0:02:33]} 22. Qd3 {[%clk 0:02:41]}  f5 {[%clk 0:02:30]} 23. Re2 {[%clk 0:02:39]}  Bc3 {[%clk 0:02:23]} 24. f3 {[%clk 0:02:33]}  Rce8 {[%clk 0:02:19]} 25. a3 {[%clk 0:02:28]}  Qf7 {[%clk 0:02:18]} 26. b4 {[%clk 0:02:25]}  e4 {[%clk 0:02:15]} 27. Qc2 {[%clk 0:01:56]}  d3 {[%clk 0:02:11]} 28. Qxc3 {[%clk 0:01:56]}  dxe2 {[%clk 0:02:11]} 29. Re1 {[%clk 0:01:57]}  exf3 {[%clk 0:02:08]} 30. Qxf3 {[%clk 0:01:58]}  Qe7 {[%clk 0:02:05]} 31. Bd3 {[%clk 0:01:58]}  Qe3+ {[%clk 0:02:04]} 32. Qxe3 {[%clk 0:01:57]}  Rxe3 {[%clk 0:02:04]} 33. Bxe2 {[%clk 0:01:58]}  Rfe8 {[%clk 0:02:04]} 34. Kf2 {[%clk 0:01:58]}  Rxa3 {[%clk 0:01:56]} 35. c5 {[%clk 0:01:56]}  bxc5 {[%clk 0:01:55]} 36. bxc5 {[%clk 0:01:57]}  Ra2 {[%clk 0:01:52]} 37. Kf3 {[%clk 0:01:45]}  Rd2 {[%clk 0:01:43]} 38. c6 {[%clk 0:01:22]}  Rxd5 {[%clk 0:01:32]} 39. Bc4 {[%clk 0:01:21]}  Rxe1 {[%clk 0:01:32]} 40. c7 {[%clk 0:01:16]}  Re8 {[%clk 0:01:14]} 41. Bxd5+ {[%clk 0:01:16]}  Kf8 {[%clk 0:01:14]} 42. Be6 {[%clk 0:01:17]}  g6 {[%clk 0:01:06]} 43. c8=Q {[%clk 0:01:15]}  Rxc8 {[%clk 0:01:06]} 44. Bxc8 {[%clk 0:01:15]}  a5 {[%clk 0:01:04]} 45. Bd7 {[%clk 0:01:15]}  Ke7 {[%clk 0:01:05]} 46. Ba4 {[%clk 0:01:15]}  Kf6 {[%clk 0:01:05]} 47. g3 {[%clk 0:01:12]}  Ke5 {[%clk 0:01:03]} 48. Ke3 {[%clk 0:01:10]}  g5 {[%clk 0:01:03]} 49. Bc2 {[%clk 0:01:07]}  f4+ {[%clk 0:01:00]} 50. Kf3 {[%clk 0:01:03]}  h5 {[%clk 0:00:59]} 51. Ba4 {[%clk 0:00:27]}  g4+ {[%clk 0:00:58]} 52. Kf2 {[%clk 0:00:28]}  fxg3+ {[%clk 0:00:47]} 53. Kxg3 {[%clk 0:00:25]}  Kf6 {[%clk 0:00:41]} 54. Kh4 {[%clk 0:00:25]}  Kg6 {[%clk 0:00:41]} 55. Be8+ {[%clk 0:00:25]}  Kh6 {[%clk 0:00:41]} 56. Bxh5 {[%clk 0:00:26]}  a4 {[%clk 0:00:41]} 57. Bf7 {[%clk 0:00:24]}  a3 {[%clk 0:00:40]} 58. Ba2 {[%clk 0:00:25]}  Kg6 {[%clk 0:00:38]} 59. Kg3 {[%clk 0:00:22]}  Kg5 {[%clk 0:00:39]} 60. Be6 {[%clk 0:00:21]}  Kh5 {[%clk 0:00:35]} 61. Bxg4+ {[%clk 0:00:21]}  Kg5 {[%clk 0:00:36]} 62. Be6 {[%clk 0:00:22]}  Kh5 {[%clk 0:00:36]} 63. Ba2 {[%clk 0:00:22]}  Kg5 {[%clk 0:00:36]} 64. h4+ {[%clk 0:00:23]}  Kh5 {[%clk 0:00:36]} 65. Kh3 {[%clk 0:00:23]}  Kh6 {[%clk 0:00:36]} 66. Kg4 {[%clk 0:00:23]}  Kg6 {[%clk 0:00:36]} 67. h5+ {[%clk 0:00:20]}  Kh6 {[%clk 0:00:36]} 68. Kh4 {[%clk 0:00:21]}  Kh7 {[%clk 0:00:36]} 69. Kg5 {[%clk 0:00:22]}  Kg7 {[%clk 0:00:36]} 70. Bb1 {[%clk 0:00:20]}  a2 {[%clk 0:00:35]} 71. Bxa2 {[%clk 0:00:17]}  Kh7 {[%clk 0:00:34]} 72. Be6 {[%clk 0:00:18]}  Kg7 {[%clk 0:00:34]} 73. h6+ {[%clk 0:00:18]}  Kh7 {[%clk 0:00:35]} 74. Bf5+ {[%clk 0:00:18]}  Kh8 {[%clk 0:00:35]} 75. Kg6 {[%clk 0:00:19]}  Kg8 {[%clk 0:00:35]} 76. Bg4 {[%clk 0:00:19]}  Kh8 {[%clk 0:00:35]} 77. Bf5 {[%clk 0:00:20]}  Kg8 {[%clk 0:00:35]} 78. h7+ {[%clk 0:00:21]}  Kh8 {[%clk 0:00:35]} 79. Kg5 {[%clk 0:00:21]}  Kg7 {[%clk 0:00:35]} 80. Bg6 {[%clk 0:00:22]}  Kh8 {[%clk 0:00:35]} 81. Kh6 {[%clk 0:00:23]} 1/2-1/2


[Site "https://www.chess.com"]

[Event "Titled Tuesday Blitz May 4 2021"]
[White "Yoo, Christopher Woojin"]
[Black "Onyshchuk, Volodymyr"]
[WhiteFideId "30909694"]
[BlackFideId "14114038"]
[WhiteElo "2009"]
[BlackElo "2605"]
[Result "0-1"]
[Round "09"]
[TimeControl "180+1"]
[Date "2021.05.04"]
[WhiteClock "0:00:01"]
[BlackClock "0:00:36"]

1. d4 {[%clk 0:03:00]}  d6 {[%clk 0:03:00]} 2. Nf3 {[%clk 0:02:55]}  g6 {[%clk 0:03:01]} 3. c4 {[%clk 0:02:52]}  Bg7 {[%clk 0:03:01]} 4. Nc3 {[%clk 0:02:52]}  Bg4 {[%clk 0:03:01]} 5. h3 {[%clk 0:02:46]}  Bxf3 {[%clk 0:03:00]} 6. exf3 {[%clk 0:02:47]}  e6 {[%clk 0:03:00]} 7. Be3 {[%clk 0:02:46]}  Ne7 {[%clk 0:02:59]} 8. Bd3 {[%clk 0:02:38]}  c6 {[%clk 0:02:59]} 9. O-O {[%clk 0:02:38]}  d5 {[%clk 0:02:59]} 10. cxd5 {[%clk 0:02:36]}  cxd5 {[%clk 0:02:57]} 11. Qd2 {[%clk 0:02:30]}  Nbc6 {[%clk 0:02:54]} 12. Ne2 {[%clk 0:02:30]}  O-O {[%clk 0:02:51]} 13. b4 {[%clk 0:02:28]}  a6 {[%clk 0:02:44]} 14. a3 {[%clk 0:02:24]}  Re8 {[%clk 0:02:37]} 15. Rac1 {[%clk 0:02:23]}  Qd7 {[%clk 0:02:29]} 16. a4 {[%clk 0:02:18]}  Nf5 {[%clk 0:02:23]} 17. Bxf5 {[%clk 0:02:16]}  exf5 {[%clk 0:02:23]} 18. b5 {[%clk 0:02:14]}  axb5 {[%clk 0:02:22]} 19. axb5 {[%clk 0:02:14]}  Na5 {[%clk 0:02:23]} 20. Qd3 {[%clk 0:02:09]}  Nc4 {[%clk 0:02:22]} 21. Nc3 {[%clk 0:01:59]}  Ra3 {[%clk 0:02:20]} 22. Ra1 {[%clk 0:01:52]}  Rea8 {[%clk 0:02:19]} 23. Rxa3 {[%clk 0:01:52]}  Rxa3 {[%clk 0:02:19]} 24. Bc1 {[%clk 0:01:48]}  Ra1 {[%clk 0:02:15]} 25. Be3 {[%clk 0:01:45]}  Rxf1+ {[%clk 0:02:13]} 26. Kxf1 {[%clk 0:01:46]}  h5 {[%clk 0:02:13]} 27. f4 {[%clk 0:01:45]}  Qd6 {[%clk 0:02:12]} 28. h4 {[%clk 0:01:42]}  Qa3 {[%clk 0:02:12]} 29. g3 {[%clk 0:01:41]}  Nd6 {[%clk 0:02:07]} 30. Ke2 {[%clk 0:01:37]}  Qb2+ {[%clk 0:02:05]} 31. Qd2 {[%clk 0:01:36]}  Qb3 {[%clk 0:02:05]} 32. Qd3 {[%clk 0:01:32]}  Bf8 {[%clk 0:02:02]} 33. Bd2 {[%clk 0:01:31]}  Be7 {[%clk 0:01:55]} 34. Qf3 {[%clk 0:01:26]}  Nxb5 {[%clk 0:01:41]} 35. Qe3 {[%clk 0:01:13]}  Nxc3+ {[%clk 0:01:31]} 36. Bxc3 {[%clk 0:01:14]}  Qb5+ {[%clk 0:01:30]} 37. Kf3 {[%clk 0:01:13]}  Bd6 {[%clk 0:01:29]} 38. Kg2 {[%clk 0:01:13]}  Kf8 {[%clk 0:01:28]} 39. Bd2 {[%clk 0:01:12]}  Qb1 {[%clk 0:01:25]} 40. Qc3 {[%clk 0:01:09]}  Qe4+ {[%clk 0:01:23]} 41. Kg1 {[%clk 0:01:09]}  Qe8 {[%clk 0:01:21]} 42. Qb3 {[%clk 0:01:05]}  Qc6 {[%clk 0:01:20]} 43. Bb4 {[%clk 0:01:05]}  Bxb4 {[%clk 0:01:19]} 44. Qxb4+ {[%clk 0:01:06]}  Kg7 {[%clk 0:01:19]} 45. Kg2 {[%clk 0:01:03]}  b5 {[%clk 0:01:18]} 46. Qe7 {[%clk 0:01:01]}  Qe6 {[%clk 0:01:13]} 47. Qc5 {[%clk 0:01:00]}  Qe4+ {[%clk 0:01:11]} 48. Kg1 {[%clk 0:01:00]}  Qb1+ {[%clk 0:01:07]} 49. Kh2 {[%clk 0:00:58]}  Qa2 {[%clk 0:01:05]} 50. Kg2 {[%clk 0:00:25]}  Qc4 {[%clk 0:01:05]} 51. Qa7 {[%clk 0:00:24]}  b4 {[%clk 0:01:04]} 52. g4 {[%clk 0:00:22]}  hxg4 {[%clk 0:01:00]} 53. h5 {[%clk 0:00:22]}  gxh5 {[%clk 0:01:00]} 54. Qe7 {[%clk 0:00:22]}  Qc6 {[%clk 0:00:52]} 55. Qxb4 {[%clk 0:00:22]}  h4 {[%clk 0:00:50]} 56. Qe7 {[%clk 0:00:16]}  Qf6 {[%clk 0:00:50]} 57. Qd7 {[%clk 0:00:16]}  Qe6 {[%clk 0:00:48]} 58. Qd8 {[%clk 0:00:15]}  h3+ {[%clk 0:00:40]} 59. Kg3 {[%clk 0:00:13]}  Qh6 {[%clk 0:00:38]} 60. Qe7 {[%clk 0:00:01]}  Qf6 {[%clk 0:00:36]} 0-1


[Site "https://www.chess.com"]

[Event "Titled Tuesday Blitz May 4 2021"]
[White "Zemach, Roee"]
[Black "Poormosavi, Seyed Kian"]
[WhiteFideId "2818531"]
[BlackFideId "12585807"]
[WhiteElo "2131"]
[BlackElo "2134"]
[Result "1-0"]
[Round "09"]
[TimeControl "180+1"]
[Date "2021.05.04"]
[WhiteClock "0:00:34"]
[BlackClock "0:00:54"]

1. d4 {[%clk 0:03:00]}  Nf6 {[%clk 0:02:45]} 2. c4 {[%clk 0:02:59]}  b6 {[%clk 0:02:44]} 3. f3 {[%clk 0:02:54]}  Nc6 {[%clk 0:02:37]} 4. d5 {[%clk 0:02:52]}  Ne5 {[%clk 0:02:36]} 5. e4 {[%clk 0:02:51]}  e6 {[%clk 0:02:36]} 6. Nc3 {[%clk 0:02:48]}  Bb4 {[%clk 0:02:35]} 7. Be3 {[%clk 0:02:41]}  O-O {[%clk 0:02:33]} 8. Bd4 {[%clk 0:02:36]}  Ng6 {[%clk 0:02:30]} 9. a3 {[%clk 0:02:32]}  Bxc3+ {[%clk 0:02:28]} 10. Bxc3 {[%clk 0:02:33]}  e5 {[%clk 0:02:27]} 11. g3 {[%clk 0:02:29]}  d6 {[%clk 0:02:26]} 12. Bg2 {[%clk 0:02:29]}  Nh5 {[%clk 0:02:25]} 13. Ne2 {[%clk 0:02:28]}  f5 {[%clk 0:02:25]} 14. exf5 {[%clk 0:02:26]}  Bxf5 {[%clk 0:02:24]} 15. Qd2 {[%clk 0:02:06]}  Qd7 {[%clk 0:02:05]} 16. O-O-O {[%clk 0:01:59]}  Bh3 {[%clk 0:02:04]} 17. Ng1 {[%clk 0:01:41]}  Bxg2 {[%clk 0:02:01]} 18. Qxg2 {[%clk 0:01:42]}  b5 {[%clk 0:01:54]} 19. Qe2 {[%clk 0:01:34]}  c6 {[%clk 0:01:24]} 20. dxc6 {[%clk 0:01:28]}  Qxc6 {[%clk 0:01:25]} 21. cxb5 {[%clk 0:01:29]}  Qc7 {[%clk 0:01:21]} 22. Kb1 {[%clk 0:01:27]}  Nf6 {[%clk 0:01:20]} 23. Nh3 {[%clk 0:01:17]}  d5 {[%clk 0:01:19]} 24. Ng5 {[%clk 0:01:10]}  h6 {[%clk 0:01:15]} 25. Ne6 {[%clk 0:01:10]}  Qd7 {[%clk 0:01:12]} 26. Nxf8 {[%clk 0:01:09]}  Qf5+ {[%clk 0:01:09]} 27. Qd3 {[%clk 0:01:00]}  Qxd3+ {[%clk 0:01:06]} 28. Rxd3 {[%clk 0:01:01]}  Rxf8 {[%clk 0:01:06]} 29. Re1 {[%clk 0:00:59]}  Re8 {[%clk 0:01:05]} 30. a4 {[%clk 0:00:56]}  Kf7 {[%clk 0:01:03]} 31. a5 {[%clk 0:00:54]}  d4 {[%clk 0:01:01]} 32. Bxd4 {[%clk 0:00:43]}  exd4 {[%clk 0:01:00]} 33. Rxe8 {[%clk 0:00:44]}  Nxe8 {[%clk 0:00:59]} 34. b6 {[%clk 0:00:41]}  axb6 {[%clk 0:00:58]} 35. axb6 {[%clk 0:00:42]}  Ne5 {[%clk 0:00:56]} 36. b7 {[%clk 0:00:38]}  Nc6 {[%clk 0:00:55]} 37. Rxd4 {[%clk 0:00:37]}  Ke6 {[%clk 0:00:54]} 38. Rc4 {[%clk 0:00:34]} 1-0


[Site "https://www.chess.com"]

[Event "Titled Tuesday Blitz May 4 2021"]
[White "Zemerov, Vladimir"]
[Black "Mirzoev, Azer"]
[WhiteFideId "4111583"]
[BlackFideId "13400304"]
[WhiteElo "2277"]
[BlackElo "2525"]
[Result "0-1"]
[Round "09"]
[TimeControl "180+1"]
[Date "2021.05.04"]
[WhiteClock "0:00:45"]
[BlackClock "0:00:09"]

1. e4 {[%clk 0:03:00]}  c5 {[%clk 0:02:59]} 2. Nf3 {[%clk 0:03:00]}  d6 {[%clk 0:02:59]} 3. d4 {[%clk 0:03:00]}  cxd4 {[%clk 0:03:00]} 4. Qxd4 {[%clk 0:03:00]}  a6 {[%clk 0:02:59]} 5. c4 {[%clk 0:02:59]}  Nc6 {[%clk 0:02:58]} 6. Qe3 {[%clk 0:02:59]}  g6 {[%clk 0:02:58]} 7. Nc3 {[%clk 0:02:58]}  Bg7 {[%clk 0:02:56]} 8. h3 {[%clk 0:02:58]}  Nf6 {[%clk 0:02:56]} 9. Be2 {[%clk 0:02:57]}  O-O {[%clk 0:02:57]} 10. O-O {[%clk 0:02:57]}  Be6 {[%clk 0:02:53]} 11. Bd2 {[%clk 0:02:57]}  Rc8 {[%clk 0:02:51]} 12. Rac1 {[%clk 0:02:56]}  Nd7 {[%clk 0:02:48]} 13. b3 {[%clk 0:02:49]}  Nc5 {[%clk 0:02:47]} 14. Nd5 {[%clk 0:02:43]}  Re8 {[%clk 0:02:45]} 15. Bc3 {[%clk 0:02:39]}  f6 {[%clk 0:02:32]} 16. Rfd1 {[%clk 0:02:34]}  Bf7 {[%clk 0:02:31]} 17. Rb1 {[%clk 0:02:25]}  a5 {[%clk 0:02:27]} 18. a3 {[%clk 0:02:23]}  e6 {[%clk 0:02:15]} 19. Nf4 {[%clk 0:02:19]}  Qe7 {[%clk 0:02:16]} 20. b4 {[%clk 0:02:17]}  axb4 {[%clk 0:02:15]} 21. axb4 {[%clk 0:02:17]}  Na4 {[%clk 0:02:06]} 22. Ba1 {[%clk 0:02:16]}  Ra8 {[%clk 0:01:22]} 23. Qd2 {[%clk 0:02:14]}  Red8 {[%clk 0:01:15]} 24. Nd3 {[%clk 0:02:09]}  g5 {[%clk 0:01:12]} 25. b5 {[%clk 0:02:09]}  Ne5 {[%clk 0:01:10]} 26. Nb4 {[%clk 0:02:01]}  Nc5 {[%clk 0:01:07]} 27. Qc2 {[%clk 0:01:55]}  Bg6 {[%clk 0:01:06]} 28. Nd2 {[%clk 0:01:52]}  h5 {[%clk 0:01:06]} 29. Bd4 {[%clk 0:01:45]}  g4 {[%clk 0:01:05]} 30. hxg4 {[%clk 0:01:43]}  Nxg4 {[%clk 0:01:05]} 31. Bxg4 {[%clk 0:01:41]}  hxg4 {[%clk 0:01:04]} 32. Re1 {[%clk 0:01:37]}  f5 {[%clk 0:01:02]} 33. Bxg7 {[%clk 0:01:36]}  Qxg7 {[%clk 0:01:02]} 34. exf5 {[%clk 0:01:35]}  Bxf5 {[%clk 0:01:02]} 35. Qb2 {[%clk 0:01:30]}  Bxb1 {[%clk 0:01:02]} 36. Qxb1 {[%clk 0:01:28]}  Rf8 {[%clk 0:01:00]} 37. Ne4 {[%clk 0:01:28]}  Qg6 {[%clk 0:00:30]} 38. Nxd6 {[%clk 0:01:24]}  Qxb1 {[%clk 0:00:29]} 39. Rxb1 {[%clk 0:01:24]}  Ra3 {[%clk 0:00:26]} 40. Rd1 {[%clk 0:01:14]}  Rd8 {[%clk 0:00:24]} 41. Rd4 {[%clk 0:01:13]}  Kf8 {[%clk 0:00:21]} 42. Rf4+ {[%clk 0:01:01]}  Ke7 {[%clk 0:00:20]} 43. Ne4 {[%clk 0:00:58]}  Rd4 {[%clk 0:00:13]} 44. Rxg4 {[%clk 0:00:58]}  Rxe4 {[%clk 0:00:12]} 45. Rg7+ {[%clk 0:00:58]}  Kf6 {[%clk 0:00:12]} 46. Rc7 {[%clk 0:00:58]}  b6 {[%clk 0:00:11]} 47. Nc6 {[%clk 0:00:56]}  Rxc4 {[%clk 0:00:10]} 48. Rh7 {[%clk 0:00:54]}  Ra1+ {[%clk 0:00:10]} 49. Kh2 {[%clk 0:00:54]}  Ra2 {[%clk 0:00:10]} 50. Kg3 {[%clk 0:00:52]}  Rc3+ {[%clk 0:00:10]} 51. f3 {[%clk 0:00:50]}  Rcc2 {[%clk 0:00:11]} 52. Kf4 {[%clk 0:00:50]}  Rxg2 {[%clk 0:00:11]} 53. Rh6+ {[%clk 0:00:49]}  Kg7 {[%clk 0:00:10]} 54. Rh1 {[%clk 0:00:48]}  Ra4+ {[%clk 0:00:10]} 55. Ke5 {[%clk 0:00:48]}  Rd2 {[%clk 0:00:10]} 56. Re1 {[%clk 0:00:46]}  Kf7 {[%clk 0:00:09]} 57. Nd4 {[%clk 0:00:45]}  Rdxd4 {[%clk 0:00:08]} 58. Re4 {[%clk 0:00:45]}  Nxe4 {[%clk 0:00:08]} 59. fxe4 {[%clk 0:00:45]}  Rxe4+ {[%clk 0:00:08]} 60. Kd6 {[%clk 0:00:45]}  Reb4 {[%clk 0:00:09]} 61. Kc6 {[%clk 0:00:45]}  Ra5 {[%clk 0:00:09]} 62. Kxb6 {[%clk 0:00:45]}  Rbxb5+ {[%clk 0:00:10]} 63. Kc6 {[%clk 0:00:46]}  Rd5 {[%clk 0:00:09]} 64. Kb6 {[%clk 0:00:46]}  Rac5 {[%clk 0:00:09]} 65. Kb7 {[%clk 0:00:46]}  Rd6 {[%clk 0:00:09]} 66. Ka7 {[%clk 0:00:46]}  Rb5 {[%clk 0:00:08]} 67. Ka8 {[%clk 0:00:45]}  Ra6# {[%clk 0:00:09]} 0-1


[Site "https://www.chess.com"]

[Event "Titled Tuesday Blitz May 4 2021"]
[White "Zhurbinsky, David"]
[Black "Onufrienko, Vladislav"]
[WhiteFideId "2072904"]
[BlackFideId "13804332"]
[WhiteElo "2452"]
[BlackElo "1661"]
[Result "0-1"]
[Round "09"]
[TimeControl "180+1"]
[Date "2021.05.04"]
[WhiteClock "0:00:05"]
[BlackClock "0:00:02"]

1. e4 {[%clk 0:03:00]}  c5 {[%clk 0:03:00]} 2. Nf3 {[%clk 0:02:59]}  Nc6 {[%clk 0:03:00]} 3. c4 {[%clk 0:02:59]}  e5 {[%clk 0:02:59]} 4. Nc3 {[%clk 0:02:58]}  g6 {[%clk 0:02:58]} 5. d3 {[%clk 0:02:58]}  Bg7 {[%clk 0:02:58]} 6. Be2 {[%clk 0:02:59]}  d6 {[%clk 0:02:58]} 7. O-O {[%clk 0:03:00]}  Nf6 {[%clk 0:02:57]} 8. a3 {[%clk 0:03:00]}  O-O {[%clk 0:02:58]} 9. Rb1 {[%clk 0:03:00]}  Nd4 {[%clk 0:02:52]} 10. h3 {[%clk 0:02:48]}  Ne8 {[%clk 0:02:31]} 11. Nxd4 {[%clk 0:02:43]}  exd4 {[%clk 0:02:29]} 12. Nd5 {[%clk 0:02:42]}  Nc7 {[%clk 0:02:29]} 13. b4 {[%clk 0:02:30]}  b6 {[%clk 0:02:28]} 14. bxc5 {[%clk 0:02:27]}  dxc5 {[%clk 0:02:28]} 15. f4 {[%clk 0:02:20]}  Nxd5 {[%clk 0:02:27]} 16. exd5 {[%clk 0:02:20]}  Re8 {[%clk 0:02:26]} 17. Bf3 {[%clk 0:02:16]}  Rb8 {[%clk 0:02:23]} 18. a4 {[%clk 0:02:05]}  Bd7 {[%clk 0:02:17]} 19. Qc2 {[%clk 0:01:59]}  Qc7 {[%clk 0:02:10]} 20. Qf2 {[%clk 0:01:31]}  Bxa4 {[%clk 0:01:59]} 21. f5 {[%clk 0:01:23]}  Bd7 {[%clk 0:01:49]} 22. Be4 {[%clk 0:01:14]}  gxf5 {[%clk 0:01:21]} 23. Bxf5 {[%clk 0:01:15]}  Bxf5 {[%clk 0:01:05]} 24. Qxf5 {[%clk 0:01:16]}  Re5 {[%clk 0:01:02]} 25. Qg4 {[%clk 0:01:12]}  Qc8 {[%clk 0:00:40]} 26. Qg3 {[%clk 0:01:02]}  Rb7 {[%clk 0:00:26]} 27. Bh6 {[%clk 0:00:53]}  f5 {[%clk 0:00:25]} 28. Bxg7 {[%clk 0:00:51]}  Re3 {[%clk 0:00:23]} 29. Rf3 {[%clk 0:00:29]}  Rxg7 {[%clk 0:00:21]} 30. Qf2 {[%clk 0:00:27]}  Qe8 {[%clk 0:00:20]} 31. Rb2 {[%clk 0:00:19]}  Re1+ {[%clk 0:00:18]} 32. Kh2 {[%clk 0:00:20]}  Qb8+ {[%clk 0:00:18]} 33. g3 {[%clk 0:00:19]}  Qe8 {[%clk 0:00:18]} 34. Rxf5 {[%clk 0:00:18]}  Re3 {[%clk 0:00:18]} 35. d6 {[%clk 0:00:13]}  Rgxg3 {[%clk 0:00:11]} 36. Qxg3+ {[%clk 0:00:09]}  Rxg3 {[%clk 0:00:12]} 37. Kxg3 {[%clk 0:00:10]}  Qg6+ {[%clk 0:00:10]} 38. Kf4 {[%clk 0:00:09]}  Qxd6+ {[%clk 0:00:10]} 39. Kg4 {[%clk 0:00:08]}  Kh8 {[%clk 0:00:04]} 40. Rbf2 {[%clk 0:00:07]}  Qg6+ {[%clk 0:00:04]} 41. Rg5 {[%clk 0:00:08]}  Qe6+ {[%clk 0:00:04]} 42. Kh5 {[%clk 0:00:05]}  Qe8+ {[%clk 0:00:03]} 43. Kh6 {[%clk 0:00:04]}  Qe6+ {[%clk 0:00:03]} 44. Kh5 {[%clk 0:00:05]}  Qxh3# {[%clk 0:00:02]} 0-1


[Site "https://www.chess.com"]

[Event "Titled Tuesday Blitz May 4 2021"]
[White "katchesskat"]
[Black "Grunberg, Mihai-Lucian"]
[BlackFideId "1204149"]
[WhiteElo "2298"]
[BlackElo "2364"]
[Result "1-0"]
[Round "09"]
[TimeControl "180+1"]
[Date "2021.05.04"]
[WhiteClock "0:00:04"]
[BlackClock "0:00:01"]

1. c4 {[%clk 0:03:00]}  e5 {[%clk 0:02:58]} 2. e3 {[%clk 0:03:01]}  Nf6 {[%clk 0:02:57]} 3. a3 {[%clk 0:03:00]}  c5 {[%clk 0:02:56]} 4. Qc2 {[%clk 0:02:57]}  Nc6 {[%clk 0:02:56]} 5. b3 {[%clk 0:02:56]}  d6 {[%clk 0:02:53]} 6. Bb2 {[%clk 0:02:56]}  Be7 {[%clk 0:02:53]} 7. d3 {[%clk 0:02:55]}  O-O {[%clk 0:02:53]} 8. Nd2 {[%clk 0:02:56]}  a6 {[%clk 0:02:52]} 9. Be2 {[%clk 0:02:56]}  b5 {[%clk 0:02:52]} 10. Ngf3 {[%clk 0:02:56]}  Rb8 {[%clk 0:02:51]} 11. O-O {[%clk 0:02:54]}  Qb6 {[%clk 0:02:46]} 12. Rfe1 {[%clk 0:02:53]}  Bf5 {[%clk 0:02:45]} 13. Rab1 {[%clk 0:02:52]}  h6 {[%clk 0:02:44]} 14. Ne4 {[%clk 0:02:48]}  Nxe4 {[%clk 0:02:43]} 15. dxe4 {[%clk 0:02:48]}  Bh7 {[%clk 0:02:42]} 16. Red1 {[%clk 0:02:47]}  Rfe8 {[%clk 0:02:32]} 17. Ba1 {[%clk 0:02:40]}  Qa7 {[%clk 0:02:29]} 18. cxb5 {[%clk 0:02:37]}  axb5 {[%clk 0:02:29]} 19. Bb2 {[%clk 0:02:36]}  Rec8 {[%clk 0:02:27]} 20. g3 {[%clk 0:02:26]}  Qd7 {[%clk 0:02:25]} 21. Kg2 {[%clk 0:02:25]}  Qe6 {[%clk 0:02:22]} 22. Bd3 {[%clk 0:02:21]}  Na5 {[%clk 0:02:17]} 23. Ba1 {[%clk 0:02:17]}  c4 {[%clk 0:02:12]} 24. bxc4 {[%clk 0:02:14]}  Nxc4 {[%clk 0:02:10]} 25. Qb3 {[%clk 0:02:12]}  Bg6 {[%clk 0:01:50]} 26. Bc3 {[%clk 0:02:01]}  Kh7 {[%clk 0:01:44]} 27. Bb4 {[%clk 0:02:00]}  f5 {[%clk 0:01:31]} 28. exf5 {[%clk 0:01:46]}  Bxf5 {[%clk 0:01:32]} 29. e4 {[%clk 0:01:41]}  Bh3+ {[%clk 0:01:27]} 30. Kg1 {[%clk 0:01:41]}  Bg4 {[%clk 0:01:26]} 31. Be2 {[%clk 0:01:39]}  Rf8 {[%clk 0:01:25]} 32. Rd3 {[%clk 0:01:35]}  Qg6 {[%clk 0:01:15]} 33. Rc3 {[%clk 0:01:06]}  Kh8 {[%clk 0:00:57]} 34. Re1 {[%clk 0:01:03]}  Bxf3 {[%clk 0:00:51]} 35. Bxf3 {[%clk 0:00:56]}  Nd2 {[%clk 0:00:49]} 36. Qd1 {[%clk 0:00:56]}  Nxf3+ {[%clk 0:00:47]} 37. Rxf3 {[%clk 0:00:56]}  Rxf3 {[%clk 0:00:44]} 38. Qxf3 {[%clk 0:00:56]}  Rf8 {[%clk 0:00:42]} 39. Qe2 {[%clk 0:00:55]}  Qf7 {[%clk 0:00:40]} 40. Rd1 {[%clk 0:00:52]}  Qf6 {[%clk 0:00:27]} 41. Rd5 {[%clk 0:00:48]}  Rc8 {[%clk 0:00:19]} 42. Rxb5 {[%clk 0:00:43]}  Rc1+ {[%clk 0:00:18]} 43. Kg2 {[%clk 0:00:43]}  Kh7 {[%clk 0:00:17]} 44. Rb8 {[%clk 0:00:41]}  Qg6 {[%clk 0:00:14]} 45. Qf3 {[%clk 0:00:38]}  Rc2 {[%clk 0:00:13]} 46. h4 {[%clk 0:00:33]}  h5 {[%clk 0:00:11]} 47. Rb7 {[%clk 0:00:32]}  Bxh4 {[%clk 0:00:10]} 48. Rd7 {[%clk 0:00:22]}  Bf6 {[%clk 0:00:09]} 49. Bxd6 {[%clk 0:00:19]}  h4 {[%clk 0:00:10]} 50. Qf5 {[%clk 0:00:10]}  hxg3 {[%clk 0:00:08]} 51. Qxg6+ {[%clk 0:00:09]}  Kxg6 {[%clk 0:00:08]} 52. Kxg3 {[%clk 0:00:09]}  Rc3+ {[%clk 0:00:07]} 53. f3 {[%clk 0:00:10]}  Kg5 {[%clk 0:00:05]} 54. Be7 {[%clk 0:00:08]}  Bxe7 {[%clk 0:00:04]} 55. Rxe7 {[%clk 0:00:08]}  Kf6 {[%clk 0:00:05]} 56. Ra7 {[%clk 0:00:08]}  Rc2 {[%clk 0:00:04]} 57. Ra6+ {[%clk 0:00:08]}  Kg5 {[%clk 0:00:04]} 58. Re6 {[%clk 0:00:08]}  Rc5 {[%clk 0:00:02]} 59. Rd6 {[%clk 0:00:06]}  Ra5 {[%clk 0:00:02]} 60. Rd5 {[%clk 0:00:05]}  Rxa3 {[%clk 0:00:02]} 61. Rxe5+ {[%clk 0:00:05]}  Kf6 {[%clk 0:00:03]} 62. Rb5 {[%clk 0:00:05]}  Kf7 {[%clk 0:00:03]} 63. Rb6 {[%clk 0:00:05]}  Ra7 {[%clk 0:00:03]} 64. Kf4 {[%clk 0:00:05]}  Kg8 {[%clk 0:00:03]} 65. Kg5 {[%clk 0:00:05]}  Kf7 {[%clk 0:00:04]} 66. f4 {[%clk 0:00:05]}  Kg8 {[%clk 0:00:04]} 67. e5 {[%clk 0:00:05]}  Kf7 {[%clk 0:00:04]} 68. f5 {[%clk 0:00:05]}  Re7 {[%clk 0:00:03]} 69. e6+ {[%clk 0:00:05]}  Kg8 {[%clk 0:00:03]} 70. Kg6 {[%clk 0:00:05]}  Re8 {[%clk 0:00:03]} 71. Rb7 {[%clk 0:00:05]}  Kh8 {[%clk 0:00:01]} 72. Kf7 {[%clk 0:00:04]} 1-0


[Site "https://www.chess.com"]

[Event "Titled Tuesday Blitz May 4 2021"]
[White "Alahakoon, Isuru"]
[Black "Dudzinski, Pawel"]
[WhiteFideId "9900993"]
[BlackFideId "1117890"]
[WhiteElo "2062"]
[BlackElo "2193"]
[Result "1-0"]
[Round "10"]
[TimeControl "180+1"]
[Date "2021.05.04"]
[WhiteClock "0:01:57"]
[BlackClock "0:02:32"]

1. Nf3 {[%clk 0:03:00]}  g6 {[%clk 0:02:59]} 2. d4 {[%clk 0:03:00]}  Bg7 {[%clk 0:03:00]} 3. Bf4 {[%clk 0:02:59]}  f5 {[%clk 0:02:59]} 4. Nc3 {[%clk 0:02:56]}  d5 {[%clk 0:02:58]} 5. e3 {[%clk 0:02:52]}  Nf6 {[%clk 0:02:58]} 6. h4 {[%clk 0:02:48]}  O-O {[%clk 0:02:58]} 7. Bd3 {[%clk 0:02:41]}  Ne4 {[%clk 0:02:56]} 8. h5 {[%clk 0:02:35]}  c5 {[%clk 0:02:56]} 9. hxg6 {[%clk 0:02:31]}  hxg6 {[%clk 0:02:56]} 10. Ne5 {[%clk 0:02:21]}  Qe8 {[%clk 0:02:54]} 11. Qf3 {[%clk 0:02:16]}  Bxe5 {[%clk 0:02:36]} 12. Bxe5 {[%clk 0:02:06]}  Kf7 {[%clk 0:02:32]} 13. Nxd5 {[%clk 0:01:57]} 1-0


[Site "https://www.chess.com"]